Cogmind - Beta 10.2 @@@ ROGUE MODE // 2021.03.11 @ 22:20:39 Player: Kitsuke Result: Self-destructed Performance ------------- Evolutions (1) 500 Regions Visited (3) 600 Robots Destroyed (17) 85 Value Destroyed (329) 329 Prototype IDs (0) 0 Alien Tech Used (0) 0 Bonus (0) 0 TOTAL SCORE: 1514 Bonus ------- None Cogmind --------- Core Integrity 192/400 Matter 164/300 Energy 100/100 System Corruption 0% Temperature Cool (31) Movement Flying (40) Location -9/Materials Parts ------- > --- POWER (2) -------- (None) > --- PROPULSION (3) --- Flight Unit > --- UTILITY (2) ------ Structural Scanner > --- WEAPON (2) ------- (None) > --- INVENTORY (4) ---- (None) Peak State ------------ > --- POWER ------------ Ion Engine > --- PROPULSION ------- Wheel Wheel > --- UTILITY ---------- Heat Sink Heat Sink > --- WEAPON ----------- Assault Rifle Light Assault Rifle > --- INVENTORY -------- Light Ion Engine Small Laser [Rating: 7] Favorites ----------- Power Ion Engine Engine Ion Engine Propulsion Light Treads Treads Light Treads Wheel Wheel Hover Unit Hover Unit Flight Unit Flight Unit Utility Structural Scanner Device Structural Scanner Weapon Assault Rifle Energy Gun Beam Rifle Ballistic Gun Assault Rifle Launcher Rocket Launcher Build | -11 -10 -10 -9 ------- Run | Scr Mat Min Mat Slots Evolved 2 | . . . 2 Power 1 | . . . 1 Propulsion 1 | . . . 1 Utility . | . . . . Weapon . | . . . . Parts Attached 37 | 6 17 7 7 Power 6 | 2 1 1 2 Engine 6 | 2 1 1 2 Core . | . . . . Reactor . | . . . . Propulsion 14 | 2 9 3 . Treads 7 | . 7 . . Leg . | . . . . Wheel 2 | 2 . . . Hover 2 | . 2 . . Flight 3 | . . 3 . Utility 4 | . 4 . . Device 4 | . 4 . . Storage . | . . . . Processor . | . . . . Hackware . | . . . . Protection . | . . . . Artifact . | . . . . Weapon 13 | 2 3 3 5 Energy Gun 2 | . . . 2 Energy Cannon . | . . . . Ballistic Gun 10 | 2 3 2 3 Ballistic Cannon . | . . . . Launcher 1 | . . 1 . Special Weapon . | . . . . Impact Weapon . | . . . . Slashing Weapon . | . . . . Piercing Weapon . | . . . . Special Melee Weapon . | . . . . Unidentified Prototypes . | . . . . Parts Lost 8 | . . . 8 Power 2 | . . . 2 Propulsion 1 | . . . 1 Utility . | . . . . Weapon 5 | . . . 5 Highest Loss Streak 7 | . . . 7 Average Slot Usage (%) 85 | . 98 82 55 Engine 13 | . 14 14 9 Treads 13 | . 25 4 . Flight 12 | . . 23 19 Device 20 | . 26 16 11 Ballistic Gun 22 | . 28 21 7 Launcher 1 | . . 1 3 Naked Turns . | . . . . Heaviest Build 11 | 8 11 11 8 Greatest Support 40 | 20 40 40 8 Greatest Overweight (x) 1 | . 1 . . Average Overweight (x) . | . . . . Largest Inventory Capacity 4 | 4 4 4 4 Average Capacity 4 | 4 4 4 4 Most Carried 4 | 3 4 4 3 Average Carried 1 | 1 2 1 2 Final Capacity 4 | 4 4 4 4 Final Carried 3 | 2 1 3 . Class Distribution -------------------- 51% | Mutant 24% | Infiltrator-Mutant 24% | Scavenger-Mutant Dominant Class ---------------- Mutant | -10/Materials Scavenger-Mutant | -10/Mines Scavenger-Mutant | -9/Materials Resources | -11 -10 -10 -9 ----------- Run | Scr Mat Min Mat Matter Collected 652 | 284 72 157 139 Remotely . | . . . . Salvage Created 343 | 45 72 69 157 Parts 34 | 1 6 14 13 Haulers Intercepted . | . . . . Recyclers Shooed 1 | . . . 1 Parts Field Recycled . | . . . . Retrieved Matter . | . . . . Parts Self-Destructed . | . . . . Prevented . | . . . . Kills | -11 -10 -10 -9 ------- Run | Scr Mat Min Mat Combat Hostiles Destroyed 15 | 1 2 5 7 Guns 10 | 1 2 5 2 AOE 5 | . . . 5 Classes Destroyed 5 | 1 . 1 3 Worker 1 | . . . 1 Recycler 1 | . . . 1 Swarmer 10 | . . 5 5 Grunt 3 | 1 2 . . Sentry 2 | . . . 2 Best Kill Streak 8 | 1 2 3 8 Combat Bots Only 6 | 1 2 3 6 Max Kills in Single Turn 4 | 1 1 1 4 Gunslinging . | . . . . Exploded 4 | . . . 4 Melee . | . . . . Uniques/NPCs Destroyed . | . . . . Combat | -11 -10 -10 -9 -------- Run | Scr Mat Min Mat Damage Taken 1063 | 75 72 312 604 Core 254 | . . 46 208 Absorbed by Shields . | . . . . Core Remaining (%) 90 | 100 . 81 . Volleys Fired 54 | 6 6 19 23 Largest 2 | 2 2 2 2 Hottest 106 | 40 40 40 106 Shots Fired 84 | 12 12 28 32 Gun 75 | 12 12 28 23 Cannon . | . . . . Launcher 9 | . . . 9 Special . | . . . . Kinetic 67 | 12 12 28 15 Thermal 8 | . . . 8 Explosive 9 | . . . 9 Electromagnetic . | . . . . Robot Hit Streak 4 | 4 4 3 3 Robot Miss Streak 6 | 1 2 6 4 Penetration Max . | . . . . Secondary Targets 3 | . . 2 1 Max Gunslinging Chain 1 | . . 1 1 Shots Hit Robots 40 | 9 8 7 16 Core Hits 28 | 2 4 5 17 Critical Hits . | . . . . Critical Kills . | . . . . Critical Parts Destroyed . | . . . . Melee Attacks . | . . . . Impact . | . . . . Slashing . | . . . . Piercing . | . . . . Sneak Attacks . | . . . . Combat Hostiles . | . . . . Follow-up Attacks . | . . . . Damage Inflicted 925 | 117 99 116 593 Guns 443 | 117 99 116 111 Cannons . | . . . . Explosions 482 | . . . 482 Melee . | . . . . Ramming . | . . . . Kinetic 414 | 117 99 116 82 Thermal 29 | . . . 29 Explosive 482 | . . . 482 Electromagnetic . | . . . . Impact . | . . . . Slashing . | . . . . Piercing . | . . . . Highest Corruption . | . . . . Average Corruption . | . . . . Corruption Purged . | . . . . Overload Shots . | . . . . Overflow Damage 10 | . . . 10 Projectiles . | . . . . Explosions 10 | . . . 10 Melee . | . . . . Knockbacks . | . . . . Impact . | . . . . Kinetic . | . . . . Secondary . | . . . . Self-Inflicted Damage 41 | . . . 41 Shots 1 | . . . 1 Rammed . | . . . . Targets Rammed . | . . . . Kicked . | . . . . Crushed . | . . . . Highest Temperature 101 | 12 . . 101 Average Temperature 39 | 7 . . 44 Received Heat Transfer 174 | 42 42 . 90 Siege Activations . | . . . . Robots Corrupted . | . . . . Combat Hostiles . | . . . . Parts Fried . | . . . . Impact Corruptions . | . . . . Robots Melted . | . . . . Combat Hostiles . | . . . . Parts Melted . | . . . . Heat Transferred 74 | . . . 74 Parts Sabotaged . | . . . . Parts Stolen . | . . . . Parts Stripped . | . . . . Power Chain Reactions . | . . . . Missiles Intercepted . | . . . . Alert | -11 -10 -10 -9 ------- Run | Scr Mat Min Mat Peak Influence 296 | 20 63 159 296 Initial 61 | . 13 24 61 Average 91 | 3 37 132 232 Maximum Alert Level 1 | . . . 1 Low Security (%) 90 | 100 100 100 23 Level 1 9 | . . . 76 Level 2 . | . . . . Level 3 . | . . . . Level 4 . | . . . . Level 5 . | . . . . High Security . | . . . . Max Security . | . . . . Squads Dispatched 2 | . 2 . . Investigation 2 | . 2 . . Extermination . | . . . . Reinforcement . | . . . . Assault . | . . . . Garrison . | . . . . Intercept . | . . . . Construction Impeded . | . . . . Haulers Reinforced . | . . . . Stealth | -11 -10 -10 -9 --------- Run | Scr Mat Min Mat Distress Signals . | . . . . Communications Jammed . | . . . . Distress Signals . | . . . . Times Spotted 22 | 1 2 6 13 Peak Tracking Total 6 | 1 2 3 6 Tactical Retreats 1 | . . 1 . Traps | -11 -10 -10 -9 ------- Run | Scr Mat Min Mat Traps Triggered 2 | . 2 . . Indirectly . | . . . . Trap Hack Attempts . | . . . . Triggered . | . . . . Disarmed . | . . . . Reprogrammed . | . . . . Reused . | . . . . Traps Extracted . | . . . . Installed . | . . . . Triggered . | . . . . Machines | -11 -10 -10 -9 ---------- Run | Scr Mat Min Mat Machines Disabled 3 | . . . 3 Max in Single Turn 2 | . . . 2 Machines Sabotaged . | . . . . Garrisons Compromised . | . . . . Overloaded Fab Kills . | . . . . Fab Network Shutdowns . | . . . . Hacking | -11 -10 -10 -9 --------- Run | Scr Mat Min Mat Machines Accessed . | . . . . Terminals . | . . . . Fabricators . | . . . . Repair Stations . | . . . . Recycling Units . | . . . . Scanalyzers . | . . . . Garrison Access . | . . . . Total Hacks . | . . . . Successful . | . . . . Failed . | . . . . Catastrophic . | . . . . Database Lockouts . | . . . . Manual . | . . . . Terminals . | . . . . Fabricators . | . . . . Repair Stations . | . . . . Recycling Units . | . . . . Scanalyzers . | . . . . Garrison Access . | . . . . Terminal Hacks . | . . . . Fabricator Hacks . | . . . . Repair Station Hacks . | . . . . Recycling Unit Hacks . | . . . . Scanalyzer . | . . . . Garrison Access Hacks . | . . . . Unauthorized Hacks . | . . . . Terminals . | . . . . Fabricators . | . . . . Repair Stations . | . . . . Recycling Units . | . . . . Scanalyzers . | . . . . Garrison Access . | . . . . Data Cores Recovered . | . . . . Used . | . . . . Hacking Detections . | . . . . Full Trace Events . | . . . . Feedback Events . | . . . . Feedback Blocked . | . . . . Robot Schematics Acquired . | . . . . Robots Built . | . . . . Matter . | . . . . Time . | . . . . Total Robot Build Rating . | . . . . Part Schematics Acquired . | . . . . Parts Built . | . . . . Matter . | . . . . Time . | . . . . Total Part Build Rating . | . . . . Parts Repaired . | . . . . Time . | . . . . Parts Recycled . | . . . . Recycled Matter . | . . . . Retrieved Matter . | . . . . Retrieved Components . | . . . . Parts Scanalyzed . | . . . . Part Schematics Acquired . | . . . . Parts Damaged . | . . . . Bothacking | -11 -10 -10 -9 ------------ Run | Scr Mat Min Mat Used RIF Installer . | . . . . Robots Hacked . | . . . . Non-combat . | . . . . Combat . | . . . . Robot Hacks Applied . | . . . . Relay Couplers Released . | . . . . Robots Rewired . | . . . . Allies Hacked . | . . . . Hacks Repelled . | . . . . Allies | -11 -10 -10 -9 -------- Run | Scr Mat Min Mat Total Allies . | . . . . Largest Group . | . . . . Highest-Rated Group . | . . . . Highest-Rated Ally . | . . . . Total Orders . | . . . . Ally Attacks . | . . . . Total Damage . | . . . . Kills . | . . . . Allies Corrupted . | . . . . Allies Melted . | . . . . Intel | -11 -10 -10 -9 ------- Run | Scr Mat Min Mat Robot Analysis Total . | . . . . Derelict Logs Recovered 2 | . . 2 . Drone Launches . | . . . . Drone Recoveries . | . . . . Exploration | -11 -10 -10 -9 ------------- Run | Scr Mat Min Mat Turns Passed 699 | 73 286 258 82 Spaces Moved 715 | 61 147 458 49 Core 18 | 18 . . . Treads 134 | . 126 8 . Legs . | . . . . Wheels 62 | 43 19 . . Hover 2 | . 2 . . Flight 499 | . . 450 49 Fastest Speed 37 | 50 80 37 37 Average Speed 64 | 71 149 39 37 Slowest Speed 160 | 80 160 160 37 Overloaded Moves . | . . . . Propulsion Burnouts . | . . . . Robots Hopped 5 | . . 5 . Cave-ins Triggered . | . . . . Exploration Rate (%) 31 | 8 26 85 8 Regions Visited 3 Branch Regions 1 Pre-discovered Areas . | . . . . Known Exits Taken . | . . . . Unknown Exits Taken 3 | 1 1 1 . Scrap Searched 3 | . . 3 . Spaces Dug . | . . . . Terrain Destroyed 76 | . . . 76 Melee . | . . . . Projectile . | . . . . AOE 76 | . . . 76 Terrain Rammed . | . . . . Walls Destroyed . | . . . . Machines Disabled . | . . . . Actions | -11 -10 -10 -9 --------- Run | Scr Mat Min Mat Total 870 | 79 203 505 83 Wait 19 | . 9 9 1 Move 702 | 60 146 447 49 Hop 5 | . . 5 . Pick Up 28 | 7 12 7 2 Fast Attach 1 | . . 1 . Attach 14 | 5 2 1 6 Detach 3 | . . 2 1 Swap 22 | 1 15 5 1 Drop 22 | . 13 9 . Fire 54 | 6 6 19 23 Melee . | . . . . Ram . | . . . . Kick . | . . . . Crush . | . . . . Escape Stasis . | . . . . Rewire . | . . . . Trap . | . . . . Miscellaneous . | . . . . Route ------- -11/Scrapyard -10/Materials -10/Mines -9/Materials (discovered 2 exits: Min x2) History --------- Turn | Location | Event 2 | -11/Scrapyard | Met Revision 17 43 | -11/Scrapyard | Discovered new exit (range 8) 74 | -11/Scrapyard | Entered Materials 335 | -10/Materials | Discovered new exit (range 16) 360 | -10/Materials | Entered Mines 473 | -10/Mines | Learned 2 Materials zone layouts 540 | -10/Mines | Learned location of 1 exit from Materials 575 | -10/Mines | Discovered new exit (range 9) 582 | -10/Mines | Received a Rocket Launcher from a helpful Derelict 618 | -10/Mines | Entered Materials 618 | -9/Materials | Evolved 2 slots: Power x1, Propulsion x1 619 | -9/Materials | Identified exit to Mines 700 | -9/Materials | Self-destructed Last Messages --------------- Acquired 2 matter. U-05 Engineer lays Concrete. Acquired 11 matter. U-05 Engineer lays Concrete. U-05 Engineer builds a Wall. K-01 Serf collects debris. U-05 Engineer builds a Wall. K-01 Serf collects debris. Lgt. Assault Rifle destroyed. K-01 Serf collects debris. S-10 Pest destroyed. Switching to secondary target: S-10 Pest. Critical hit. Beam Rifle destroyed. Flight Unit destroyed. K-01 Serf collects debris. K-01 Serf destroyed. Med. Laser destroyed. Lgt. Ion Engine destroyed. Lgt. Assault Rifle destroyed. Map ----- +----------------------------------------------------+ | ?????????????????????????????????????????????????? | | ?????????????????????????????????????????????????? | | ?????????????????????????????????????????????????? | | ?????????????????????????????????????????????????? | | ?????????????????????????????????????????????????? | | ?????????????????????????????????????????????????? | | ?????????????????????????????????????????????????? | | ?????????????????????????????????????????????????? | | ??????????????????#?????????????# """ #??????? | | ??????????????????##????????????# """ #??????? | | ?????????????????? #???????????## """ #??????? | | ?????? ??????? #???????????# #??????? | | ????? %"????? #???????????## #??????? | | ????? ???? #??########### #??????? | | ????## ???? #??## ###+####+##??????? | | ??#+# """?? #??# ??????? | | ? # ""?? #??# ??????? | | "" ""?? ##?# ??????? | | """ *% ??? #?# ###########??????? | | S" ????###?## ## ##????????????????? | | #?????????###### #?????????????????? | | """ ???????????????# #?????????????????? | | """ ###?????####?????# #?????????????????? | | " " #####?# ###???# ############??????? | | % # # ### #####w + ??????? | | = [ @[Y= #### ??????? | | " * ssY #??# ??????? | | " %=[ s #??# ??????? | | ## # # #### #??# ??????? | | ## # ### ########??# #??# ??????? | | ?###### #?#r ########### #??# ??????? | | ??##### #?# ## ## #??# ??????? | | ??# #?# ## """ ## #??#########??????? | | ??# #?# #?????????? #?????????????????? | | ??# #?# #??????????? #?????????????????? | | ??#### ##?# #??????????? #?????????????????? | | ?????# #??# #??????????? #?????????????????? | | ?????# #??# #??????????? #?????????????????? | | ?????# #??# #??????????? #?????????????????? | | ?????# #??# #???????????? #?????????????????? | | ?????# #??# ?????????????#?????????????????? | | ?????# #??? ????????????????????????????????? | | ?????# #???????????????????????????????????????? | | ?????# #???????????????????????????????????????? | | ?????# #???????????????????????????????????????? | | ?????# #???????????????????????????????????????? | | ?????? #???????????????????????????????????????? | | ?????? #???????????????????????????????????????? | | ?????????????????????????????????????????????????? | | ?????????????????????????????????????????????????? | +----------------------------------------------------+ Best States ------------- Heat Dissipation 45 Energy Generation 10 Energy Capacity 250 Matter Stores 300 Matter Capacity 300 Sight Range 16 Terrain Scan Density 10 ECM Strength 1 Evasion (%) 62 Recoil Reduction 2 Item Schematics ----------------- None Robot Schematics ------------------ None Fabricated ------------ Nothing Alien Tech Used ----------------- None Achievements -------------- Storm Trooper Challenges ------------ None Game ------ Seed MakeshiftSkeletonShielding Manual? 0 Play Time 00:27:05 Cumulative 3.5 hours Start 2021.03.11 @ 21:50:58 End 2021.03.11 @ 22:20:39 Sessions 1 Manual Loads 0 Difficulty Rogue Special Mode None Game No. 5 Rogue 5 Adventurer 0 Explorer 0 Win Type - Total 0 Types 0/0/0/0/0/0/0/0/0 Lore% 1 Gallery% 8 Achievement% 4 Wizard Run 0 Options --------- ASCII 0 Keyboard 0 Movement Mouse Keybinds 0 Fullscreen 1 Font 18/SmallcapsGlow Map View 76x50 Tactical HUD 0 Map Filters NONE Filters NONE Steam 1 RUN: 00d69a94-32c0-414e-bc04-462d744c2ced